fUSD/lending_fUSD_20250602
["ID","MTS","AMOUNT","RATE_DAILY","PERIOD"]
[363766846,1748866243875,-420.0,0.00019178,2]
[363766848,1748866243884,-422.67176676,0.00019178,2]
[363766850,1748866243894,-420.0,0.00019178,2]
[363766851,1748866243903,-423.3098264,0.00019178,2]
[363766854,1748866243914,-420.0,0.00019178,2]
[363766856,1748866243923,-420.0,0.00019178,2]
[363766857,1748866243933,-420.0,0.00019178,2]
[363766859,1748866243943,-420.0,0.00019178,2]
[363766861,1748866243952,-425.69402888,0.00019178,2]
[363766863,1748866243961,-420.0,0.00019178,2]
[363766865,1748866243971,-420.0,0.00019178,2]
[363766867,1748866243981,-421.86774691,0.00019178,2]
[363766869,1748866243990,-420.0,0.00019178,2]
[363766871,1748866244000,-420.0,0.00019178,2]
[363766873,1748866244010,-420.0,0.00019178,2]
[363766875,1748866244019,-420.0,0.00019178,2]
[363766877,1748866244029,-420.0,0.00019178,2]
[363766879,1748866244039,-420.0,0.00019178,2]
[363766881,1748866244053,-218.79049232,0.00019178,2]
[363766883,1748866244063,-420.0,0.00019178,2]
[363766885,1748866244073,-537.7783328,0.00019178,2]
[363766887,1748866244083,-420.0,0.00019178,2]
[363766890,1748866244093,-420.0,0.00019178,2]
[363766891,1748866244103,-426.7520489,0.00019178,2]
[363766893,1748866244112,-420.0,0.00019178,2]
[363766895,1748866244123,-420.0,0.00019178,2]
[363766897,1748866244133,-420.0,0.00019178,2]
[363766899,1748866244143,-420.0,0.00019178,2]
[363766901,1748866244152,-420.0,0.00019178,2]
[363766903,1748866244162,-420.0,0.00019178,2]
[363766905,1748866244171,-424.0640363,0.00019178,2]
[363766907,1748866244180,-420.0,0.00019178,2]
[363766909,1748866244191,-420.0,0.00019178,2]
[363766911,1748866244201,-422.59699901,0.00019178,2]
[363766913,1748866244211,-430.13094673,0.00019178,2]
[363766915,1748866244222,-420.0,0.00019178,2]
[363766917,1748866244231,-420.0,0.00019178,2]
[363766919,1748866244241,-420.0,0.00019178,2]
[363766921,1748866244250,-420.0,0.00019178,2]
[363766923,1748866244259,-420.0,0.00019178,2]
[363766925,1748866244269,-420.0,0.00019178,2]
[363766927,1748866244278,-420.0,0.00019178,2]
[363766929,1748866244287,-420.0,0.00019178,2]
[363766931,1748866244296,-420.0,0.00019178,2]
[363766933,1748866244307,-420.0,0.00019178,2]
[363766935,1748866244316,-420.0,0.00019178,2]
[363766937,1748866244328,-425.29681768,0.00019178,2]
[363766939,1748866244337,-420.0,0.00019178,2]
[363766941,1748866244347,-420.0,0.00019178,2]
[363766943,1748866244356,-421.90951918,0.00019178,2]
[363766945,1748866244366,-429.97739593,0.00019178,2]
[363766947,1748866244376,-420.0,0.00019178,2]
[363766949,1748866244385,-420.0,0.00019178,2]
[363766951,1748866244395,-420.0,0.00019178,2]
[363766953,1748866244404,-420.0,0.00019178,2]
[363766955,1748866244413,-422.31934432,0.00019178,2]
[363766957,1748866244424,-420.0,0.00019178,2]
[363766959,1748866244433,-424.04401939,0.00019178,2]
[363766961,1748866244442,-430.02747192,0.00019178,2]
[363766963,1748866244451,-199.25,0.00019178,2]
[363766965,1748866244460,-420.0,0.00019178,2]
[363766967,1748866244469,-500.0,0.00019178,2]
[363766969,1748866244479,-420.0,0.00019178,2]
[363766971,1748866244488,-430.79556284,0.00019178,2]
[363766973,1748866244497,-420.0,0.00019178,2]
[363766975,1748866244507,-424.27813042,0.00019178,2]
[363766977,1748866244516,-419.32220386,0.00019178,2]
[363766979,1748866244527,-420.0,0.00019178,2]
[363766981,1748866244536,-427.09888397,0.00019178,2]
[363766983,1748866244545,-420.0,0.00019178,2]
[363766985,1748866244555,-420.0,0.00019178,2]
[363766987,1748866244565,-347.97299277,0.00019178,2]
[363766989,1748866244574,-2346.62,0.00019178,2]
[363766991,1748866244584,-424.86625451,0.00019178,2]
[363766993,1748866244594,-420.0,0.00019178,2]
[363766995,1748866244604,-420.0,0.00019178,2]
[363766997,1748866244613,-432.96750827,0.00019178,2]
[363766999,1748866244622,-420.0,0.00019178,2]
[363767001,1748866244631,-420.0,0.00019178,2]
[363767003,1748866244642,-432.32386219,0.00019178,2]
[363767005,1748866244651,-420.0,0.00019178,2]
[363767007,1748866244661,-514.45555693,0.00019178,2]
[363767009,1748866244670,-2394.9,0.00019178,2]
[363767011,1748866244679,-420.0,0.00019178,2]
[363767012,1748866244689,-422.52903083,0.00019178,2]
[363767014,1748866244699,-420.0,0.00019178,2]
[363767016,1748866244709,-420.0,0.00019178,2]
[363767018,1748866244719,-420.0,0.00019178,2]
[363767020,1748866244729,-420.0,0.00019178,2]
[363767022,1748866244738,-420.0,0.00019178,2]
[363767024,1748866244748,-420.0,0.00019178,2]
[363767026,1748866244758,-420.0,0.00019178,2]
[363767028,1748866244767,-1297.39,0.00019178,2]
[363767030,1748866244777,-420.0,0.00019178,2]
[363767032,1748866244786,-420.0,0.00019178,2]
[363767035,1748866244796,-423.82214542,0.00019178,2]
[363767036,1748866244806,-559.12982061,0.00019178,2]
[363767039,1748866244815,-425.29630054,0.00019178,2]
[363767040,1748866244824,-420.0,0.00019178,2]
[363767042,1748866244834,-421.79162404,0.00019178,2]
[363767044,1748866244843,-420.0,0.00019178,2]
[363767046,1748866244852,-424.16842203,0.00019178,2]
[363767048,1748866244861,-420.0,0.00019178,2]
[363767050,1748866244871,-420.0,0.00019178,2]
[363767052,1748866244880,-1297.67,0.00019178,2]
[363767054,1748866244889,-420.0,0.00019178,2]
[363767056,1748866244899,-420.0,0.00019178,2]
[363767058,1748866244908,-500.0,0.00019178,2]
[363767060,1748866244917,-428.98415361,0.00019178,2]
[363767062,1748866244927,-432.87554074,0.00019178,2]
[363767064,1748866244934,-424.41622128,0.00019178,2]
[363767066,1748866244942,-420.0,0.00019178,2]
[363767068,1748866244951,-420.0,0.00019178,2]
[363767070,1748866244960,-430.3834389,0.00019178,2]
[363767072,1748866244969,-420.0,0.00019178,2]
[363767074,1748866244978,-420.0,0.00019178,2]
[363767076,1748866244987,-420.0,0.00019178,2]
[363767078,1748866244996,-420.0,0.00019178,2]
[363767080,1748866245005,-420.0,0.00019178,2]
[363767082,1748866245015,-420.0,0.00019178,2]
[363767084,1748866245024,-422.49373714,0.00019178,2]
[363767086,1748866245034,-434.6492576,0.00019178,2]
[363767088,1748866245044,-427.31813057,0.00019178,2]
[363767090,1748866245058,-420.0,0.00019178,2]
[363767092,1748866245067,-420.0,0.00019178,2]
[363767094,1748866245077,-423.73109071,0.00019178,2]
[363767096,1748866245088,-420.0,0.00019178,2]
[363767098,1748866245097,-420.0,0.00019178,2]
[363767100,1748866245107,-420.0,0.00019178,2]
[363767102,1748866245117,-420.0,0.00019178,2]
[363767105,1748866245128,-420.0,0.00019178,2]
[363767107,1748866245138,-420.0,0.00019178,2]
[363767108,1748866245149,-420.0,0.00019178,2]
[363767111,1748866245159,-420.0,0.00019178,2]
[363767112,1748866245168,-420.0,0.00019178,2]
[363767114,1748866245178,-420.0,0.00019178,2]
[363767116,1748866245188,-424.46654298,0.00019178,2]
[363767119,1748866245197,-501.94880624,0.00019178,2]
[363767121,1748866245206,-420.0,0.00019178,2]
[363767122,1748866245215,-420.0,0.00019178,2]
[363767124,1748866245227,-1000.0,0.00019178,2]
[363767127,1748866245237,-420.0,0.00019178,2]
[363767129,1748866245247,-1991.82,0.00019178,2]
[363767130,1748866245256,-423.62970908,0.00019178,2]
[363767132,1748866245266,-424.04622931,0.00019178,2]
[363767134,1748866245276,-422.68011806,0.00019178,2]
[363767136,1748866245285,-420.0,0.00019178,2]
[363767138,1748866245294,-2432.56884,0.00019178,2]
[363767139,1748866245303,-420.0,0.00019178,2]
[363767140,1748866245313,-420.0,0.00019178,2]
[363767141,1748866245322,-420.0,0.00019178,2]
[363767142,1748866245332,-420.0,0.00019178,2]
[363767143,1748866245341,-423.92421782,0.00019178,2]
[363767144,1748866245351,-428.54072521,0.00019178,2]
[363767145,1748866245361,-420.0,0.00019178,2]
[363767147,1748866245371,-420.0,0.00019178,2]
[363767148,1748866245380,-420.0,0.00019178,2]
[363767150,1748866245390,-524.97,0.00019178,2]
[363767153,1748866245400,-589.22,0.00019178,2]
[363767155,1748866245409,-420.0,0.00019178,2]
[363767157,1748866245419,-430.77303348,0.00019178,2]
[363767159,1748866245428,-422.75342159,0.00019178,2]
[363767161,1748866245439,-543.34,0.00019178,2]
[363767163,1748866245448,-420.0,0.00019178,2]
[363767164,1748866245457,-420.0,0.00019178,2]
[363767167,1748866245467,-422.97278535,0.00019178,2]
[363767168,1748866245476,-420.0,0.00019178,2]
[363767170,1748866245486,-420.0,0.00019178,2]
[363767172,1748866245495,-420.0,0.00019178,2]
[363767175,1748866245505,-420.0,0.00019178,2]
[363767176,1748866245514,-420.0,0.00019178,2]
[363767179,1748866245524,-424.69166004,0.00019178,2]
[363767180,1748866245534,-420.0,0.00019178,2]
[363767182,1748866245544,-420.0,0.00019178,2]
[363767184,1748866245553,-420.0,0.00019178,2]
[363767185,1748866245563,-1101.85,0.00019178,2]
[363767187,1748866245572,-421.87387323,0.00019178,2]
[363767189,1748866245582,-491.88849602,0.00019178,2]
[363767191,1748866245592,-288.71064766,0.00019178,2]
[363767193,1748866245601,-470.65434136,0.00019178,2]
[363767195,1748866245612,-1001.24,0.00019178,2]
[363767197,1748866245621,-1074.37,0.00019178,2]
[363767198,1748866245631,-420.0,0.00019178,2]
[363767200,1748866245641,-681.4,0.00019178,2]
[363767202,1748866245651,-1007.64,0.00019178,2]
[363767204,1748866245661,-422.14979009,0.00019178,2]
[363767206,1748866245671,-388.83110871,0.00019178,2]
[363767208,1748866245681,-420.0,0.00019178,2]
[363767210,1748866245690,-427.0750853,0.00019178,2]
[363767212,1748866245700,-420.0,0.00019178,2]
[363767214,1748866245709,-2223.6662,0.00019178,2]
[363767216,1748866245719,-420.0,0.00019178,2]
[363767218,1748866245728,-420.0,0.00019178,2]
[363767220,1748866245738,-420.0,0.00019178,2]
[363767222,1748866245748,-420.0,0.00019178,2]
[363767224,1748866245758,-1222.76,0.00019178,2]
[363767226,1748866245767,-420.0,0.00019178,2]
[363767228,1748866245777,-429.16825019,0.00019178,2]
[363767230,1748866245787,-151.87735,0.00019178,2]
[363767232,1748866245797,-420.0,0.00019178,2]
[363767234,1748866245807,-1702.4,0.00019178,2]
[363767235,1748866245816,-7518.89,0.00019178,2]
[363767237,1748866245826,-420.0,0.00019178,2]
[363767239,1748866245835,-564.82236884,0.00019178,2]
[363767241,1748866245845,-420.0,0.00019178,2]
[363767243,1748866245855,-183.957081,0.00019178,2]
[363767245,1748866245864,-423.34484422,0.00019178,2]
[363767247,1748866245875,-420.0,0.00019178,2]
[363767249,1748866245884,-662.91,0.00019178,2]
[363767251,1748866245894,-434.2835704,0.00019178,2]
[363767253,1748866245904,-420.0,0.00019178,2]
[363767255,1748866245913,-420.0,0.00019178,2]
[363767257,1748866245923,-420.0,0.00019178,2]
[363767259,1748866245933,-420.0,0.00019178,2]
[363767262,1748866245943,-420.0,0.00019178,2]
[363767265,1748866245953,-420.0,0.00019178,2]
[363767267,1748866245962,-423.79800969,0.00019178,2]
[363767269,1748866245972,-420.0,0.00019178,2]
[363767271,1748866245982,-512.83,0.00019178,2]
[363767273,1748866245991,-420.0,0.00019178,2]
[363767275,1748866246000,-420.83336899,0.00019178,2]
[363767277,1748866246010,-420.0,0.00019178,2]
[363767279,1748866246019,-432.69413765,0.00019178,2]
[363767281,1748866246028,-420.0,0.00019178,2]
[363767283,1748866246038,-420.0,0.00019178,2]
[363767285,1748866246051,-435.34706175,0.00019178,2]
[363767288,1748866246062,-3843.98,0.00019178,2]
[363767291,1748866246071,-420.0,0.00019178,2]
[363767293,1748866246081,-420.0,0.00019178,2]
[363767295,1748866246091,-947.92,0.00019178,2]
[363767297,1748866246100,-434.77596943,0.00019178,2]
[363767299,1748866246110,-427.51823982,0.00019178,2]
[363767301,1748866246119,-420.0,0.00019178,2]
[363767303,1748866246129,-420.0,0.00019178,2]
[363767305,1748866246139,-915.88,0.00019178,2]
[363767307,1748866246150,-420.0,0.00019178,2]
[363767309,1748866246160,-507.31994032,0.00019178,2]
[363767311,1748866246169,-420.0,0.00019178,2]
[363767313,1748866246179,-439.08693599,0.00019178,2]
[363767315,1748866246189,-997.85,0.00019178,2]
[363767317,1748866246199,-420.0,0.00019178,2]
[363767319,1748866246209,-420.0,0.00019178,2]
[363767322,1748866246218,-585.37,0.00019178,2]
[363767324,1748866246228,-300.45093343,0.00019178,2]
[363767326,1748866246238,-420.0,0.00019178,2]
[363767328,1748866246247,-473.74737263,0.00019178,2]
[363767330,1748866246257,-443.00945896,0.00019178,2]
[363767332,1748866246268,-420.0,0.00019178,2]
[363767334,1748866246277,-420.0,0.00019178,2]
[363767336,1748866246287,-420.0,0.00019178,2]
[363767338,1748866246297,-420.0,0.00019178,2]
[363767340,1748866246308,-420.0,0.00019178,2]
[363767342,1748866246318,-433.06533355,0.00019178,2]
[363767344,1748866246327,-423.84163838,0.00019178,2]
[363767346,1748866246337,-420.0,0.00019178,2]
[363767348,1748866246347,-420.0,0.00019178,2]
[363767350,1748866246356,-424.08402345,0.00019178,2]
[363767352,1748866246366,-420.0,0.00019178,2]
[363767354,1748866246376,-421.42303554,0.00019178,2]
[363767356,1748866246385,-420.0,0.00019178,2]
[363767358,1748866246395,-334.34168585,0.00019178,2]
[363767360,1748866246405,-420.0,0.00019178,2]
[363767362,1748866246414,-420.0,0.00019178,2]
[363767364,1748866246424,-420.0,0.00019178,2]
[363767381,1748866246434,-440.80394416,0.00019178,2]
[363767383,1748866246601,-459.57125077,0.00019178,2]
[363767385,1748866246611,-420.0,0.00019178,2]
[363767387,1748866246621,-420.0,0.00019178,2]
[363767389,1748866246631,-15616.11,0.00019178,2]
[363767391,1748866246641,-420.0,0.00019178,2]
[363767393,1748866246650,-420.0,0.00019178,2]
[363767395,1748866246659,-420.0,0.00019178,2]
[363767397,1748866246669,-425.89510262,0.00019178,2]
[363767399,1748866246679,-1578.05,0.00019178,2]
[363767401,1748866246689,-420.0,0.00019178,2]
[363767403,1748866246698,-420.0,0.00019178,2]
[363767405,1748866246708,-420.0,0.00019178,2]
[363767407,1748866246718,-1132.96,0.00019178,2]
[363767409,1748866246728,-428.68836176,0.00019178,2]
[363767411,1748866246738,-422.53979213,0.00019178,2]
[363767413,1748866246747,-420.0,0.00019178,2]
[363767414,1748866246757,-420.0,0.00019178,2]
[363767415,1748866246766,-679.27,0.00019178,2]
[363767416,1748866246776,-357.90042326,0.00019178,2]
[363767417,1748866246785,-420.0,0.00019178,2]
[363767418,1748866246794,-420.0,0.00019178,2]
[363767419,1748866246803,-428.3561183,0.00019178,2]
[363767420,1748866246817,-420.0,0.00019178,2]
[363767421,1748866246826,-420.0,0.00019178,2]
[363767422,1748866246835,-420.0,0.00019178,2]
[363767423,1748866246845,-293.51183924,0.00019178,2]
[363767425,1748866246855,-420.0,0.00019178,2]
[363767427,1748866246865,-382.37998054,0.00019178,2]
[363767429,1748866246875,-420.0,0.00019178,2]
[363767431,1748866246885,-420.0,0.00019178,2]
[363767433,1748866246895,-420.0,0.00019178,2]
[363767435,1748866246905,-420.0,0.00019178,2]
[363767437,1748866246914,-420.0,0.00019178,2]
[363767439,1748866246925,-420.0,0.00019178,2]
[363767442,1748866246934,-420.0,0.00019178,2]
[363767444,1748866246944,-420.0,0.00019178,2]
[363767447,1748866246954,-420.0,0.00019178,2]
[363767450,1748866246965,-420.0,0.00019178,2]
[363767453,1748866246975,-508.87334993,0.00019178,2]
[363767455,1748866246986,-548.254758,0.00019178,2]
[363767457,1748866246996,-420.0,0.00019178,2]
[363767459,1748866247006,-420.0,0.00019178,2]
[363767461,1748866247016,-425.23742382,0.00019178,2]
[363767463,1748866247026,-420.0,0.00019178,2]
[363767465,1748866247035,-420.0,0.00019178,2]
[363767467,1748866247047,-420.0,0.00019178,2]
[363767469,1748866247059,-420.0,0.00019178,2]
[363767471,1748866247068,-420.0,0.00019178,2]
[363767473,1748866247078,-420.0,0.00019178,2]
[363767475,1748866247088,-421.11975641,0.00019178,2]
[363767477,1748866247098,-420.0,0.00019178,2]
[363767479,1748866247108,-345.99000791,0.00019178,2]
[363767481,1748866247118,-420.0,0.00019178,2]
[363767483,1748866247128,-420.0,0.00019178,2]
[363767485,1748866247139,-420.0,0.00019178,2]
[363767487,1748866247148,-797.02,0.00019178,2]
[363767489,1748866247158,-421.30591172,0.00019178,2]
[363767491,1748866247169,-420.0,0.00019178,2]
[363767493,1748866247179,-422.37496298,0.00019178,2]
[363767495,1748866247188,-420.0,0.00019178,2]
[363767497,1748866247198,-425.35545483,0.00019178,2]
[363767499,1748866247208,-420.0,0.00019178,2]
[363767501,1748866247218,-420.0,0.00019178,2]
[363767502,1748866247229,-420.0,0.00019178,2]
[363767505,1748866247239,-427.47562714,0.00019178,2]
[363767506,1748866247248,-422.82579742,0.00019178,2]
[363767508,1748866247259,-420.0,0.00019178,2]
[363767510,1748866247268,-420.0,0.00019178,2]
[363767512,1748866247279,-419.97460433,0.00019178,2]
[363767515,1748866247289,-418.27275758,0.00019178,2]
[363767517,1748866247299,-420.0,0.00019178,2]
[363767518,1748866247310,-420.0,0.00019178,2]
[363767521,1748866247320,-481.01,0.00019178,2]
[363767523,1748866247330,-420.0,0.00019178,2]
[363767524,1748866247339,-534.53997816,0.00019178,2]
[363767527,1748866247349,-426.86694138,0.00019178,2]
[363767529,1748866247359,-420.0,0.00019178,2]
[363767530,1748866247369,-420.0,0.00019178,2]
[363767532,1748866247378,-420.0,0.00019178,2]
[363767534,1748866247388,-420.0,0.00019178,2]
[363767536,1748866247397,-420.0,0.00019178,2]
[363767538,1748866247407,-4428.18,0.00019178,2]
[363767540,1748866247417,-420.0,0.00019178,2]
[363767543,1748866247427,-420.0,0.00019178,2]
[363767545,1748866247437,-420.0,0.00019178,2]
[363767547,1748866247446,-420.0,0.00019178,2]
[363767549,1748866247456,-421.33469741,0.00019178,2]
[363767551,1748866247466,-420.0,0.00019178,2]
[363767553,1748866247475,-428.93738027,0.00019178,2]
[363767554,1748866247485,-420.0,0.00019178,2]
[363767556,1748866247494,-420.0,0.00019178,2]
[363767558,1748866247503,-3023.12,0.00019178,2]
[363767561,1748866247514,-425.44898575,0.00019178,2]
[363767563,1748866247523,-420.0,0.00019178,2]
[363767564,1748866247532,-420.0,0.00019178,2]
[363767566,1748866247542,-426.83267641,0.00019178,2]
[363767568,1748866247552,-420.0,0.00019178,2]
[363767570,1748866247563,-420.0,0.00019178,2]
[363767572,1748866247572,-500.0,0.00019178,2]
[363767574,1748866247581,-427.66780096,0.00019178,2]
[363767576,1748866247591,-420.0,0.00019178,2]
[363767578,1748866247601,-420.0,0.00019178,2]
[363767580,1748866247611,-420.0,0.00019178,2]
[363767582,1748866247622,-430.94188887,0.00019178,2]
[363767585,1748866247632,-420.0,0.00019178,2]
[363767587,1748866247643,-420.0,0.00019178,2]
[363767589,1748866247653,-420.0,0.00019178,2]
[363767591,1748866247662,-538.21034538,0.00019178,2]
[363767593,1748866247672,-420.0,0.00019178,2]
[363767595,1748866247682,-420.0,0.00019178,2]
[363767597,1748866247691,-422.98554994,0.00019178,2]
[363767599,1748866247701,-429.00700455,0.00019178,2]
[363767601,1748866247710,-420.0,0.00019178,2]
[363767603,1748866247720,-420.0,0.00019178,2]
[363767605,1748866247730,-421.77582201,0.00019178,2]
[363767607,1748866247739,-420.0,0.00019178,2]
[363767609,1748866247749,-420.0,0.00019178,2]
[363767611,1748866247759,-646.97,0.00019178,2]
[363767613,1748866247772,-420.0,0.00019178,2]
[363767615,1748866247782,-420.0,0.00019178,2]
[363767617,1748866247791,-420.0,0.00019178,2]
[363767619,1748866247801,-420.0,0.00019178,2]
[363767621,1748866247811,-420.0,0.00019178,2]
[363767623,1748866247821,-644.19,0.00019178,2]
[363767625,1748866247831,-423.58740013,0.00019178,2]
[363767627,1748866247842,-420.84362808,0.00019178,2]
[363767629,1748866247852,-1091.75,0.00019178,2]
[363767631,1748866247862,-420.0,0.00019178,2]
[363767633,1748866247872,-888.23,0.00019178,2]
[363767635,1748866247882,-420.0,0.00019178,2]
[363767637,1748866247892,-305.22373023,0.00019178,2]
[363767639,1748866247902,-420.0,0.00019178,2]
[363767641,1748866247912,-420.0,0.00019178,2]
[363767643,1748866247922,-444.65,0.00019178,2]
[363767645,1748866247933,-423.5649854,0.00019178,2]
[363767647,1748866247943,-420.0,0.00019178,2]
[363767649,1748866247952,-434.02524137,0.00019178,2]
[363767651,1748866247962,-420.0,0.00019178,2]
[363767653,1748866247972,-420.0,0.00019178,2]
[363767655,1748866247981,-420.0,0.00019178,2]
[363767657,1748866247991,-420.0,0.00019178,2]
[363767659,1748866248000,-420.0,0.00019178,2]
[363767661,1748866248010,-420.0,0.00019178,2]
[363767663,1748866248020,-513.47,0.00019178,2]
[363767664,1748866248029,-420.0,0.00019178,2]
[363767667,1748866248039,-426.55692564,0.00019178,2]
[363767669,1748866248054,-423.04912675,0.00019178,2]
[363767671,1748866248065,-420.0,0.00019178,2]
[363767673,1748866248074,-420.0,0.00019178,2]
[363767675,1748866248084,-420.0,0.00019178,2]
[363767676,1748866248095,-427.24038642,0.00019178,2]
[363767677,1748866248105,-420.0,0.00019178,2]
[363767678,1748866248115,-567.29,0.00019178,2]
[363767679,1748866248127,-420.0,0.00019178,2]
[363767680,1748866248137,-537.64374815,0.00019178,2]
[363767681,1748866248147,-431.14275335,0.00019178,2]
[363767682,1748866248157,-432.12592272,0.00019178,2]
[363767683,1748866248167,-425.8336524,0.00019178,2]
[363767685,1748866248177,-461.70263288,0.00019178,2]
[363767687,1748866248187,-922.08,0.00019178,2]
[363767689,1748866248196,-420.0,0.00019178,2]
[363767691,1748866248207,-420.0,0.00019178,2]
[363767693,1748866248217,-420.0,0.00019178,2]
[363767695,1748866248227,-424.9542498,0.00019178,2]
[363767697,1748866248236,-500.0,0.00019178,2]
[363767699,1748866248246,-500.0,0.00019178,2]
[363767702,1748866248256,-420.0,0.00019178,2]
[363767703,1748866248266,-735.73,0.00019178,2]
[363767705,1748866248276,-420.0,0.00019178,2]
[363767707,1748866248286,-420.0,0.00019178,2]
[363767710,1748866248296,-420.0,0.00019178,2]
[363767712,1748866248306,-420.0,0.00019178,2]
[363767714,1748866248317,-423.81538254,0.00019178,2]
[363767715,1748866248327,-422.61606773,0.00019178,2]
[363767717,1748866248337,-420.0,0.00019178,2]
[363767719,1748866248346,-420.0,0.00019178,2]
[363767721,1748866248357,-420.0,0.00019178,2]
[363767723,1748866248366,-500.0,0.00019178,2]
[363767725,1748866248376,-420.0,0.00019178,2]
[363767727,1748866248386,-420.0,0.00019178,2]
[363767729,1748866248395,-426.7505348,0.00019178,2]
[363767731,1748866248405,-422.88324008,0.00019178,2]
[363767733,1748866248415,-513.74,0.00019178,2]
[363767735,1748866248425,-420.0,0.00019178,2]
[363767737,1748866248435,-420.0,0.00019178,2]
[363767739,1748866248445,-701.56,0.00019178,2]
[363767741,1748866248455,-1971.96,0.00019178,2]
[363767743,1748866248465,-420.0,0.00019178,2]
[363767745,1748866248476,-420.0,0.00019178,2]
[363767747,1748866248486,-420.0,0.00019178,2]
[363767749,1748866248496,-1313.43,0.00019178,2]
[363767751,1748866248506,-1461.21,0.00019178,2]
[363767753,1748866248516,-420.0,0.00019178,2]
[363767755,1748866248526,-2022.11242964,0.00019178,2]
[363767757,1748866248535,-432.23785756,0.00019178,2]
[363767759,1748866248545,-424.78352884,0.00019178,2]
[363767761,1748866248558,-420.0,0.00019178,2]
[363767763,1748866248569,-420.0,0.00019178,2]
[363767765,1748866248579,-420.0,0.00019178,2]
[363767767,1748866248589,-420.0,0.00019178,2]
[363767769,1748866248599,-500.0,0.00019178,2]
[363767771,1748866248609,-1779.74,0.00019178,2]
[363767773,1748866248619,-420.0,0.00019178,2]
[363767775,1748866248629,-420.0,0.00019178,2]
[363767777,1748866248639,-420.0,0.00019178,2]
[363767779,1748866248648,-420.0,0.00019178,2]
[363767781,1748866248659,-369.72267372,0.00019178,2]
[363767783,1748866248669,-420.0,0.00019178,2]
[363767785,1748866248679,-420.0,0.00019178,2]
[363767787,1748866248688,-426.18391061,0.00019178,2]
[363767789,1748866248698,-420.0,0.00019178,2]
[363767791,1748866248708,-543.12,0.00019178,2]
[363767793,1748866248718,-420.0,0.00019178,2]
[363767795,1748866248728,-421.51096099,0.00019178,2]
[363767797,1748866248737,-427.78651961,0.00019178,2]
[363767799,1748866248747,-420.0,0.00019178,2]
[363767801,1748866248757,-420.0,0.00019178,2]
[363767803,1748866248766,-420.0,0.00019178,2]
[363767805,1748866248776,-420.0,0.00019178,2]
[363767807,1748866248787,-420.0,0.00019178,2]
[363767808,1748866248797,-1360.86,0.00019178,2]
[363767810,1748866248808,-420.0,0.00019178,2]
[363767813,1748866248818,-425.45077826,0.00019178,2]
[363767814,1748866248828,-420.0,0.00019178,2]
[363767816,1748866248838,-420.0,0.00019178,2]
[363767819,1748866248848,-420.0,0.00019178,2]
[363767821,1748866248859,-420.0,0.00019178,2]
[363767823,1748866248868,-421.12346784,0.00019178,2]
[363767824,1748866248878,-421.46283838,0.00019178,2]
[363767826,1748866248889,-420.0,0.00019178,2]
[363767828,1748866248899,-420.0,0.00019178,2]
[363767830,1748866248909,-1670.1,0.00019178,2]
[363767832,1748866248919,-421.24480167,0.00019178,2]
[363767834,1748866248928,-2670.74,0.00019178,2]
[363767837,1748866248937,-420.0,0.00019178,2]